fUST/lending_fUST_20250531
["ID","MTS","AMOUNT","RATE_DAILY","PERIOD"]
[363321126,1748671844608,-1044.74521,0.00021103,2]
[363321127,1748671844619,-485.051079,0.00021103,2]
[363321128,1748671844628,-478.607033,0.00021103,2]
[363321145,1748671844841,-478.607033,0.00021103,2]
[363321148,1748671844859,-270.884582,0.00021103,2]
[363321150,1748671844872,-202.33915,0.00021103,2]
[363321152,1748671844881,-202.33915,0.00021103,2]
[363321154,1748671844890,-3000.0,0.0002111,2]
[363321156,1748671844899,-151.0,0.0002111,2]
[363321158,1748671844908,-151.0,0.0002111,2]
[363321160,1748671844917,-600.22195784,0.00021115,2]
[363321162,1748671844926,-5000.0,0.00021119,2]
[363321164,1748671844935,-3000.0,0.0002112,2]
[363321166,1748671844945,-776.59145559,0.0002112,2]
[363321168,1748671844954,-1000.0,0.00021121,2]
[363321170,1748671844963,-1000.0,0.00021121,2]
[363321172,1748671844973,-728.4905794,0.00021123,2]
[363321174,1748671844982,-3000.0,0.0002113,2]
[363321176,1748671844992,-151.0,0.0002113,2]
[363321178,1748671845001,-151.0,0.0002113,2]
[363321180,1748671845011,-186.458484,0.0002113,2]
[363321182,1748671845020,-186.458484,0.0002113,2]
[363321184,1748671845030,-3000.0,0.0002114,2]
[363321186,1748671845039,-3000.0,0.0002115,2]
[363321188,1748671845049,-3000.0,0.0002116,2]
[363321190,1748671845059,-3000.0,0.0002117,2]
[363321192,1748671845068,-352.4210161,0.00021178,2]
[363321194,1748671845077,-572.2963003,0.00021178,2]
[363321196,1748671845088,-572.2963003,0.00021178,2]
[363321198,1748671845097,-3000.0,0.0002118,2]
[363321200,1748671845107,-6660.31817197,0.00021187,2]
[363321202,1748671845116,-3000.0,0.0002119,2]
[363321204,1748671845125,-3000.0,0.000212,2]
[363321206,1748671845135,-217.33035506,0.00021202,2]
[363321208,1748671845144,-1000.0,0.00021202,2]
[363321210,1748671845153,-1000.0,0.00021202,2]
[363321212,1748671845165,-1000.0,0.00021202,2]
[363321214,1748671845178,-1000.0,0.00021202,2]
[363321216,1748671845190,-1000.0,0.00021202,2]
[363321218,1748671845199,-1000.0,0.00021202,2]
[363321220,1748671845208,-3000.0,0.0002121,2]
[363321222,1748671845218,-160.18894433,0.0002121,2]
[363321224,1748671845227,-450.3400897,0.0002121,2]
[363321226,1748671845237,-500.0,0.0002121,2]
[363321228,1748671845247,-500.0,0.0002121,2]
[363321230,1748671845261,-3000.0,0.0002122,2]
[363321232,1748671845272,-3000.0,0.0002123,2]
[363321234,1748671845282,-177.98140521,0.00021233,2]
[363321236,1748671845291,-3000.0,0.0002124,2]
[363321238,1748671845301,-3000.0,0.0002125,2]
[363321240,1748671845311,-3000.0,0.0002126,2]
[363321242,1748671845320,-3000.0,0.0002127,2]
[363321244,1748671845330,-151.0,0.00021279,2]
[363321246,1748671845340,-1329.1799409,0.00021279,5]
[363321248,1748671845352,-3000.0,0.0002128,2]
[363321250,1748671845362,-2696.74,0.00021287,2]
[363321252,1748671845371,-430.0,0.00021287,2]
[363321254,1748671845381,-151.0,0.00021288,2]
[363321256,1748671845391,-400.49783772,0.00021288,2]
[363321258,1748671845400,-500.0,0.00021288,2]
[363321260,1748671845409,-500.0,0.00021288,2]
[363321262,1748671845419,-3000.0,0.0002129,2]
[363321264,1748671845432,-3000.0,0.000213,2]
[363321266,1748671845441,-3000.0,0.0002131,2]
[363321268,1748671845450,-3000.0,0.0002132,2]
[363321269,1748671845460,-3307.061402,0.0002133,2]
[363321271,1748671845469,-151.0,0.0002133,2]
[363321273,1748671845479,-151.0,0.0002133,2]
[363321276,1748671845489,-151.0,0.0002133,2]
[363321277,1748671845498,-389.876165,0.0002133,2]
[363321280,1748671845509,-389.876165,0.0002133,2]
[363321282,1748671845518,-500.9753311,0.00021353,2]
[363321283,1748671845528,-600.0,0.00021353,2]
[363321285,1748671845538,-266.60611606,0.00021353,2]
[363321288,1748671845548,-538.80581164,0.00021353,2]
[363321290,1748671845558,-500.0,0.00021353,2]
[363321292,1748671845567,-501.97086298,0.00021353,2]
[363321293,1748671845576,-1598.48,0.00021369,2]
[363321295,1748671845586,-430.0,0.00021372,2]
[363321297,1748671845595,-1718.82,0.00021373,2]
[363321299,1748671845605,-488.79,0.00021373,2]
[363321301,1748671845615,-2597.91,0.00021373,2]
[363321303,1748671845624,-1015.81,0.00021373,2]
[363321305,1748671845633,-1263.49,0.00021373,2]
[363321307,1748671845642,-430.0,0.00021373,2]
[363321309,1748671845651,-3422.19,0.00021374,2]
[363321311,1748671845661,-430.0,0.00021374,2]
[363321313,1748671845670,-1269.56,0.00021375,2]
[363321315,1748671845680,-729.4,0.00021375,2]
[363321317,1748671845690,-430.0,0.00021375,2]
[363321319,1748671845699,-23163.28,0.00021375,2]
[363321321,1748671845709,-437.91,0.00021375,2]
[363321323,1748671845719,-653.83,0.00021375,2]
[363321325,1748671845735,-736.6,0.00021376,2]
[363321327,1748671845748,-151.0,0.00021376,2]
[363321329,1748671845758,-430.0,0.00021376,2]
[363321331,1748671845768,-430.0,0.00021376,2]
[363321333,1748671845777,-4001.35746561,0.00021383,5]
[363321335,1748671845787,-800.0,0.00021452,2]
[363321337,1748671845797,-666.9145776,0.00021481,24]
[363321339,1748671845807,-177.98140521,0.00021507,2]
[363321341,1748671845816,-1000.0,0.00021521,2]
[363321343,1748671845827,-1000.0,0.00021521,2]
[363321345,1748671845837,-570.39206092,0.00021521,2]
[363321347,1748671845847,-1000.0,0.00021521,2]
[363321349,1748671845856,-1329.1799409,0.00021521,5]
[363321352,1748671845865,-250.0,0.00021522,2]
[363321355,1748671845875,-6660.31817196,0.00021526,2]
[363321357,1748671845884,-1144.3770804,0.00021534,2]
[363321360,1748671845895,-500.0,0.00021536,2]
[363321362,1748671845903,-500.0,0.00021536,2]
[363321364,1748671845913,-500.0,0.00021536,2]
[363321367,1748671845923,-306.8507996,0.00021536,2]
[363321369,1748671845932,-2169.014366,0.0002156,3]
[363321371,1748671845941,-2696.74,0.00021561,2]
[363321373,1748671845950,-430.0,0.00021561,2]
[363321375,1748671845960,-3621.464793,0.00021579,2]
[363321377,1748671845969,-3621.464793,0.00021579,2]
[363321379,1748671845979,-1044.74521,0.00021579,2]
[363321381,1748671845988,-485.051079,0.00021579,2]
[363321383,1748671845998,-1044.74521,0.00021579,2]
[363321385,1748671846007,-485.051079,0.00021579,2]
[363321387,1748671846017,-478.607033,0.00021579,2]
[363321389,1748671846027,-478.607033,0.00021579,2]
[363321391,1748671846036,-202.33915,0.00021579,2]
[363321393,1748671846046,-202.33915,0.00021579,2]
[363321395,1748671846056,-666.9145776,0.00021579,25]
[363321397,1748671846065,-600.22195785,0.00021581,2]
[363321399,1748671846075,-10557.18,0.000216,2]
[363321401,1748671846086,-77895.21,0.000216,2]
[363321403,1748671846095,-151.0,0.000216,2]
[363321405,1748671846105,-1598.48,0.00021643,2]
[363321407,1748671846115,-151.0,0.00021644,2]
[363321409,1748671846124,-250.0,0.00021644,2]
[363321411,1748671846133,-208.566,0.00021644,2]
[363321413,1748671846143,-238.354,0.00021644,2]
[363321414,1748671846152,-250.0,0.00021644,2]
[363321417,1748671846162,-241.79,0.00021644,2]
[363321418,1748671846172,-257.794,0.00021644,2]
[363321420,1748671846181,-242.0,0.00021644,2]
[363321422,1748671846190,-215.257,0.00021644,2]
[363321424,1748671846199,-977.181,0.00021644,2]
[363321426,1748671846209,-2228.0,0.00021644,2]
[363321428,1748671846218,-708.0,0.00021644,2]
[363321430,1748671846228,-430.0,0.00021646,2]
[363321432,1748671846237,-1718.82,0.00021647,2]
[363321434,1748671846247,-488.79,0.00021647,2]
[363321436,1748671846256,-2597.91,0.00021647,2]
[363321438,1748671846266,-1015.81,0.00021647,2]
[363321440,1748671846275,-1263.49,0.00021647,2]
[363321442,1748671846286,-358.34039141,0.00021647,2]
[363321444,1748671846297,-3422.19,0.00021648,2]
[363321446,1748671846306,-430.0,0.00021648,2]
[363321448,1748671846315,-1269.56,0.00021649,2]
[363321450,1748671846325,-729.4,0.00021649,2]
[363321452,1748671846339,-430.0,0.00021649,2]
[363321454,1748671846360,-23163.28,0.00021649,2]
[363321456,1748671846370,-437.91,0.00021649,2]
[363321458,1748671846380,-653.83,0.00021649,2]
[363321460,1748671846392,-736.6,0.0002165,2]
[363321462,1748671846401,-151.0,0.0002165,2]
[363321464,1748671846411,-151.0,0.0002165,2]
[363321466,1748671846420,-430.0,0.0002165,2]
[363321468,1748671846429,-151.0,0.0002165,2]
[363321470,1748671846439,-389.876165,0.0002165,2]
[363321472,1748671846448,-389.876165,0.0002165,2]
[363321474,1748671846457,-430.0,0.0002165,2]
[363321476,1748671846467,-151.0,0.00021651,2]
[363321478,1748671846476,-5000.0,0.00021667,2]
[363321480,1748671846485,-1500.0,0.00021668,2]
[363321482,1748671846494,-500.47193221,0.00021668,2]
[363321484,1748671846503,-666.9145776,0.00021678,27]
[363321485,1748671846513,-151.0,0.00021697,2]
[363321487,1748671846523,-151.0,0.00021697,2]
[363321489,1748671846532,-5000.0,0.00021697,2]
[363321491,1748671846542,-151.0,0.000217,2]
[363321493,1748671846553,-151.0,0.000217,2]
[363321496,1748671846563,-186.458484,0.000217,2]
[363321497,1748671846573,-186.458484,0.000217,2]
[363321499,1748671846584,-1500.0,0.0002175,2]
[363321501,1748671846593,-1500.0,0.0002175,2]
[363321503,1748671846603,-1001.06523105,0.0002175,2]
[363321506,1748671846613,-1500.0,0.0002175,2]
[363321507,1748671846623,-1500.0,0.0002175,2]
[363321509,1748671846632,-1500.0,0.0002175,2]
[363321511,1748671846642,-508.88840598,0.00021758,2]
[363321514,1748671846653,-1329.1799409,0.00021762,5]
[363321516,1748671846662,-666.9145776,0.00021776,28]
[363321517,1748671846673,-1000.0,0.000218,6]
[363321520,1748671846683,-1000.0,0.000218,7]
[363321522,1748671846693,-390.36,0.000218,10]
[363321524,1748671846703,-871.53995902,0.00021835,2]
[363321544,1748671846873,-298.04696269,0.00017539,2]
[363321646,1748671847962,-430.0,0.00017264,2]
[363321648,1748671847971,-131.95303731,0.00017539,2]
[363321651,1748671847981,-151.0,0.00020191,2]
[363321653,1748671847991,-151.943397,0.00020554,2]
[363321667,1748671848114,-338.46902157,0.00021835,2]
[363322031,1748672057547,203.0,0.000141,2]
[363322032,1748672107499,59303.919,0.0002464,120]
[363322033,1748672417438,90800.0,0.00024657,120]
[363322034,1748672486358,3947.0,0.00021917,60]
[363322125,1748672735533,160.746744,0.00013699,2]
[363322127,1748672742140,-2000.0,0.00016317,2]
[363322128,1748672742164,-136.27299395,0.00017258,2]
[363322129,1748672762050,-206.893183,0.00016331,2]
[363322130,1748672762074,-914.0,0.00017258,2]
[363322131,1748672762098,-300.0,0.00017258,2]
[363322132,1748672762122,-479.38,0.00017259,2]
[363322133,1748672762148,-1198.46,0.00017259,2]
[363322134,1748672762174,-430.0,0.00017259,2]
[363322135,1748672762196,-430.0,0.00017262,2]
[363322136,1748672762220,-430.0,0.00017262,2]
[363322137,1748672762245,-223.49018546,0.00017262,2]
[363322138,1748672762268,-173.3848675,0.00017262,2]
[363322139,1748672762297,-430.0,0.00017262,2]
[363322140,1748672762319,-430.0,0.00017262,2]
[363322141,1748672762343,-430.0,0.00017262,2]
[363322142,1748672762366,-430.0,0.00017262,2]
[363322143,1748672762390,-430.0,0.00017262,2]
[363322144,1748672762413,-430.0,0.00017262,2]
[363322145,1748672762437,-430.0,0.00017262,2]
[363322146,1748672762460,-455.28,0.00017263,2]
[363322147,1748672762486,-430.0,0.00017263,2]
[363322148,1748672762510,-430.0,0.00017263,2]
[363322149,1748672762533,-1140.73,0.00017263,2]
[363322150,1748672762556,-430.0,0.00017263,2]
[363322151,1748672762581,-598.39,0.00017263,2]
[363322152,1748672762605,-651.42,0.00017263,2]
[363322153,1748672762632,-430.0,0.00017263,2]
[363322154,1748672762657,-430.0,0.00017263,2]
[363322155,1748672762680,-430.0,0.00017263,2]
[363322156,1748672762706,-444.48,0.00017263,2]
[363322157,1748672762733,-1015.6,0.00017263,2]
[363322158,1748672762758,-573.51,0.00017263,2]
[363322159,1748672762783,-459.4352748,0.00017263,2]
[363322160,1748672762809,-430.0,0.00017263,2]
[363322161,1748672762835,-430.0,0.00017263,2]
[363322162,1748672762860,-430.0,0.00017263,2]
[363322163,1748672762885,-430.0,0.00017263,2]
[363322164,1748672762909,-430.0,0.00017263,2]
[363322165,1748672762934,-430.0,0.00017263,2]
[363322166,1748672762957,-402.1124176,0.00017264,2]
[363322167,1748672762980,-430.0,0.00017264,2]
[363322168,1748672763003,-380.72048411,0.00017264,2]
[363322169,1748672763025,-155.72141373,0.00017264,2]
[363322170,1748672763048,-444.86,0.00017264,2]
[363322171,1748672763070,-457.48,0.00017264,2]
[363322172,1748672763094,-430.0,0.00017264,2]
[363322173,1748672763119,-440.47,0.00017264,2]
[363322174,1748672763143,-430.0,0.00017264,2]
[363322175,1748672763167,-430.0,0.00017264,2]
[363322176,1748672763191,-430.0,0.00017264,2]
[363322177,1748672763217,-530.61,0.00017264,2]
[363322178,1748672763241,-430.0,0.00017264,2]
[363322179,1748672763264,-430.0,0.00017264,2]
[363322180,1748672763288,-9254.31,0.00017264,2]
[363322181,1748672763313,-430.0,0.00017264,2]
[363322182,1748672763337,-430.0,0.00017264,2]
[363322183,1748672763361,-430.0,0.00017264,2]
[363322184,1748672763386,-479.38,0.00017533,2]
[363322185,1748672763410,-1198.46,0.00017533,2]
[363322186,1748672763435,-430.0,0.00017533,2]
[363322187,1748672763459,-430.0,0.00017536,2]
[363322188,1748672763483,-430.0,0.00017536,2]
[363322189,1748672763506,-430.0,0.00017536,2]
[363322190,1748672763533,-500.0,0.00017536,2]
[363322191,1748672763559,-204.44191546,0.00017536,2]
[363322192,1748672763583,-430.0,0.00017536,2]
[363322193,1748672763607,-430.0,0.00017536,2]
[363322194,1748672763633,-376.98025834,0.00017537,2]
[363322195,1748672803622,-163.0,0.00017258,2]
[363322196,1748672803647,-430.0,0.00017262,2]
[363322197,1748672803670,-430.0,0.00017263,2]
[363322198,1748672803695,-1235.79,0.00017263,2]
[363322199,1748672803720,-430.0,0.00017263,2]
[363322200,1748672803744,-439.43,0.00017264,2]
[363322201,1748672803767,-174.05,0.00017536,2]
[363322202,1748672803788,-430.0,0.00017537,2]
[363322203,1748672803812,-598.39,0.00017537,2]
[363322204,1748672803835,-651.42,0.00017537,2]
[363322205,1748672803860,-430.0,0.00017537,2]
[363322206,1748672803885,-444.48,0.00017537,2]
[363322207,1748672803911,-1015.6,0.00017537,2]
[363322208,1748672803937,-573.51,0.00017537,2]
[363322209,1748672803962,-430.0,0.00017537,2]
[363322210,1748672803987,-430.0,0.00017537,2]
[363322211,1748672804012,-430.0,0.00017537,2]
[363322212,1748672804037,-353.37,0.00017537,2]
[363322213,1748672804062,-430.0,0.00017537,2]
[363322214,1748672804086,-480.96,0.00017537,2]
[363322216,1748672826100,-475.86,0.00017262,2]
[363322217,1748672826137,-668.75,0.00017262,2]
[363322218,1748672826166,-508.5,0.00017263,2]
[363322219,1748672826190,-211.3214004,0.00017536,2]
[363322220,1748672828121,-264.5385996,0.00017536,2]
[363322221,1748672828148,-668.75,0.00017536,2]
[363322222,1748672828173,-754.83,0.00017537,2]
[363322223,1748672828202,-508.5,0.00017537,2]
[363322224,1748672828225,-430.0,0.00017538,2]
[363322225,1748672828250,-229.19533137,0.00017538,2]
[363322226,1748672830108,-615.12,0.00017262,2]
[363322227,1748672830133,-969.42447086,0.00017263,2]
[363322228,1748672832141,-309.41271411,0.00017263,2]
[363322229,1748672896653,-430.0,0.00017262,2]
[363322230,1748672896681,-430.0,0.00017262,2]
[363322231,1748672896708,-449.76,0.00017262,2]
[363322232,1748672896738,-1149.97,0.00017262,2]
[363322233,1748672896766,-300.0,0.00017262,2]
[363322234,1748672896791,-578.36,0.00017262,2]
[363322235,1748672896816,-430.0,0.00017262,2]
[363322236,1748672896841,-8555.01281503,0.00017263,2]
[363322237,1748672896866,-430.0,0.00017263,2]
[363322238,1748672896891,-430.0,0.00017263,2]
[363322239,1748672896916,-430.0,0.00017263,2]
[363322240,1748672896940,-430.0,0.00017263,2]
[363322241,1748672896963,-194.49008992,0.00017263,2]
[363322242,1748672896989,-1366.12,0.00017264,2]
[363322243,1748672897015,-430.0,0.00017264,2]
[363322244,1748672897042,-615.12,0.00017536,2]
[363322245,1748672897068,-430.0,0.00017536,2]
[363322246,1748672897094,-449.76,0.00017536,2]
[363322247,1748672897122,-1149.97,0.00017536,2]
[363322248,1748672897148,-578.36,0.00017536,2]
[363322249,1748672897172,-430.0,0.00017536,2]
[363322250,1748672897198,-9833.85,0.00017537,2]
[363322251,1748672897224,-479.22709505,0.00017537,2]
[363322289,1748673032761,-300.0,0.00017261,2]
[363322305,1748673033274,-300.0,0.00017261,2]
[363322306,1748673033283,-1200.0,0.00017261,2]
[363322307,1748673033293,-430.0,0.00017262,2]
[363322308,1748673033303,-430.0,0.00017262,2]
[363322309,1748673033313,-430.0,0.00017262,2]
[363322310,1748673033322,-430.0,0.00017262,2]
[363322311,1748673033332,-430.0,0.00017262,2]
[363322312,1748673033341,-430.0,0.00017262,2]
[363322313,1748673033351,-430.0,0.00017262,2]
[363322314,1748673033360,-430.0,0.00017262,2]
[363322315,1748673033370,-430.0,0.00017263,2]
[363322316,1748673033379,-430.0,0.00017263,2]
[363322317,1748673033389,-430.0,0.00017263,2]
[363322318,1748673033399,-483.28252954,0.00017263,2]
[363322319,1748673033409,-430.0,0.00017263,2]
[363322320,1748673033419,-430.0,0.00017263,2]
[363322321,1748673033428,-374.45711979,0.00017263,2]
[363322322,1748673033438,-430.0,0.00017536,2]
[363322323,1748673033448,-528.21,0.00017536,2]
[363322324,1748673033458,-430.0,0.00017536,2]
[363322325,1748673033467,-315.6351653,0.00017536,2]
[363322337,1748673038534,-114.3648347,0.00017536,2]
[363322338,1748673038544,-430.0,0.00017536,2]
[363322339,1748673038553,-430.0,0.00017536,2]
[363322340,1748673038563,-200.80466863,0.00017537,2]
[363322341,1748673038572,-71.25465243,0.00017537,2]
[363322342,1748673038588,-358.74534757,0.00017537,2]
[363322343,1748673038597,-430.0,0.00017537,2]
[363322344,1748673038606,-430.0,0.00017537,2]
[363322345,1748673038615,-430.0,0.00017537,2]
[363322346,1748673038625,-430.0,0.00017537,2]
[363322347,1748673038634,-430.0,0.00017537,2]
[363322348,1748673038643,-787.9,0.00017537,2]
[363322349,1748673038652,-439.72126762,0.00017537,2]
[363322350,1748673038662,-500.0,0.00017537,2]
[363322351,1748673038671,-500.0,0.00017537,2]
[363322352,1748673038680,-500.0,0.00017537,2]
[363322353,1748673038689,-500.0,0.00017537,2]
[363322354,1748673038698,-563.04165765,0.00017537,2]
[363322355,1748673038708,-500.0,0.00017537,2]
[363322356,1748673038717,-424.86695624,0.00017537,2]
[363322357,1748673038729,-489.68328401,0.00017537,2]
[363322358,1748673038738,-439.43,0.00017538,2]
[363322359,1748673038748,-1366.12,0.00017538,2]
[363322360,1748673038766,-430.0,0.00017538,2]
[363322361,1748673038777,-21294.38859312,0.00017538,2]
[363322362,1748673038787,-158.85397852,0.00017611,2]
[363322363,1748673038796,-189.20811447,0.00017711,2]
[363322364,1748673038806,-493.10934082,0.00017809,2]
[363322365,1748673038816,-430.0,0.0001781,2]
[363322366,1748673038825,-430.0,0.0001781,2]
[363322367,1748673038834,-475.86,0.0001781,2]
[363322368,1748673038843,-668.75,0.0001781,2]
[363322369,1748673038853,-430.0,0.0001781,2]
[363322370,1748673038862,-449.76,0.0001781,2]
[363322371,1748673038872,-1149.97,0.0001781,2]
[363322372,1748673038881,-578.36,0.0001781,2]
[363322373,1748673038891,-430.0,0.0001781,2]
[363322374,1748673038900,-430.0,0.0001781,2]
[363322375,1748673038910,-430.0,0.0001781,2]
[363322376,1748673038919,-430.0,0.00017811,2]
[363322377,1748673038928,-430.0,0.00017811,2]
[363322378,1748673038938,-1235.79,0.00017811,2]
[363322379,1748673038947,-508.5,0.00017811,2]
[363322380,1748673038957,-9833.85,0.00017811,2]
[363322381,1748673038966,-430.0,0.00017811,2]
[363322382,1748673038976,-430.0,0.00017811,2]
[363322383,1748673038986,-430.0,0.00017811,2]
[363322384,1748673038995,-430.0,0.00017811,2]
[363322385,1748673039005,-787.9,0.00017811,2]
[363322386,1748673039015,-439.43,0.00017812,2]
[363322387,1748673039024,-1366.12,0.00017812,2]
[363322388,1748673039033,-430.0,0.00017812,2]
[363322389,1748673039043,-430.0,0.00018084,2]
[363322390,1748673039052,-475.86,0.00018084,2]
[363322391,1748673039062,-668.75,0.00018084,2]
[363322392,1748673039071,-430.0,0.00018084,2]
[363322393,1748673039081,-449.76,0.00018084,2]
[363322394,1748673039090,-1149.97,0.00018084,2]
[363322395,1748673039100,-578.36,0.00018084,2]
[363322396,1748673039109,-398.1,0.00018084,2]
[363322397,1748673039119,-430.0,0.00018084,2]
[363322398,1748673039128,-430.0,0.00018084,2]
[363322399,1748673039138,-430.0,0.00018085,2]
[363322400,1748673039148,-1235.79,0.00018085,2]
[363322401,1748673039158,-508.5,0.00018085,2]
[363322402,1748673039167,-9833.85,0.00018085,2]
[363322403,1748673039177,-430.0,0.00018085,2]
[363322404,1748673039187,-430.0,0.00018085,2]
[363322405,1748673039196,-430.0,0.00018085,2]
[363322406,1748673039205,-430.0,0.00018085,2]
[363322408,1748673039214,-787.9,0.00018085,2]
[363322409,1748673039224,-439.43,0.00018086,2]
[363322410,1748673039233,-1366.12,0.00018086,2]
[363322411,1748673039242,-430.0,0.00018086,2]
[363322413,1748673039252,-600.0,0.00018164,2]
[363322414,1748673039261,-22314.21917995,0.00018233,2]
[363322416,1748673039271,-430.0,0.00018358,2]
[363322417,1748673039280,-475.86,0.00018358,2]
[363322418,1748673039290,-668.75,0.00018358,2]
[363322419,1748673039299,-430.0,0.00018358,2]
[363322420,1748673039308,-449.76,0.00018358,2]
[363322421,1748673039318,-1149.97,0.00018358,2]
[363322422,1748673039327,-578.36,0.00018358,2]
[363322423,1748673039337,-430.0,0.00018358,2]
[363322424,1748673039346,-375.65023164,0.00018358,2]
[363322425,1748673039356,-161.25,0.00018359,2]
[363322426,1748673039365,-1235.79,0.00018359,2]
[363322427,1748673039378,-508.5,0.00018359,2]
[363322428,1748673039388,-9833.85,0.00018359,2]
[363322429,1748673039398,-430.0,0.00018359,2]
[363322430,1748673039408,-430.0,0.00018359,2]
[363322431,1748673039418,-430.0,0.00018359,2]
[363322432,1748673039428,-430.0,0.00018359,2]
[363322433,1748673039437,-787.9,0.00018359,2]
[363322434,1748673039447,-439.43,0.0001836,2]
[363322435,1748673039457,-1366.12,0.0001836,2]
[363322436,1748673039467,-430.0,0.0001836,2]
[363322437,1748673039476,-189.20811447,0.00018396,2]
[363322438,1748673039486,-160.0,0.00018631,2]
[363322439,1748673039495,-430.0,0.00018632,2]
[363322440,1748673039506,-475.86,0.00018632,2]
[363322441,1748673039515,-668.75,0.00018632,2]
[363322442,1748673039525,-430.0,0.00018632,2]
[363322443,1748673039535,-449.76,0.00018632,2]
[363322444,1748673039544,-1149.97,0.00018632,2]
[363322445,1748673039554,-578.36,0.00018632,2]
[363322446,1748673039564,-430.0,0.00018632,2]
[363322447,1748673039574,-1235.79,0.00018633,2]
[363322448,1748673039583,-508.5,0.00018633,2]
[363322449,1748673039592,-9833.85,0.00018633,2]
[363322450,1748673039602,-430.0,0.00018633,2]
[363322451,1748673039612,-430.0,0.00018633,2]
[363322452,1748673039622,-430.0,0.00018633,2]
[363322453,1748673039631,-430.0,0.00018633,2]
[363322454,1748673039641,-787.9,0.00018633,2]
[363322455,1748673039651,-439.43,0.00018634,2]
[363322456,1748673039660,-1366.12,0.00018634,2]
[363322457,1748673039670,-430.0,0.00018634,2]
[363322458,1748673039680,-13547.38399876,0.00018783,2]
[363322459,1748673039690,-420.0,0.00018845,2]
[363322460,1748673039699,-859.28957187,0.000189,2]
[363322461,1748673039709,-430.0,0.00018906,2]
[363322462,1748673039719,-475.86,0.00018906,2]
[363322463,1748673039733,-668.75,0.00018906,2]
[363322464,1748673039743,-430.0,0.00018906,2]
[363322465,1748673039753,-449.76,0.00018906,2]
[363322466,1748673039763,-1149.97,0.00018906,2]
[363322467,1748673039774,-578.36,0.00018906,2]
[363322468,1748673039784,-250.86299075,0.00018906,2]
[363322469,1748673039794,-1235.79,0.00018907,2]
[363322470,1748673039805,-508.5,0.00018907,2]
[363322471,1748673039817,-9833.85,0.00018907,2]
[363322472,1748673039827,-430.0,0.00018907,2]
[363322473,1748673039837,-430.0,0.00018907,2]
[363322474,1748673039847,-430.0,0.00018907,2]
[363322475,1748673039857,-430.0,0.00018907,2]
[363322476,1748673039867,-787.9,0.00018907,2]
[363322477,1748673039876,-439.43,0.00018908,2]
[363322478,1748673039886,-1366.12,0.00018908,2]
[363322479,1748673039899,-430.0,0.00018908,2]
[363322480,1748673039910,-12664.98044988,0.00018939,2]
[363322481,1748673039921,-160.0,0.00018939,2]
[363322482,1748673039931,-229.3428821,0.00018939,2]
[363322483,1748673039941,-160.0,0.00018939,2]
[363322484,1748673039951,-160.0,0.00018939,2]
[363322485,1748673039962,-212.77096907,0.00018939,2]
[363322487,1748673040151,-160.0,0.00018939,2]
[363322489,1748673040161,-160.0,0.00018939,2]
[363322490,1748673040171,-314.84782018,0.00018939,2]
[363322491,1748673040180,-842.5625,0.00018939,2]
[363322492,1748673040190,-423.4608169,0.00018939,2]